bitfinex-derivatives/quotes_SOLF0:USTF0_20251023
["timestamp","ask_amount","ask_price","bid_price","bid_amount"]
[1761228633044,2.86,189.09,189.02,4.7604]
[1761228633445,2.86,189.09,189.01,2.8]
[1761228633749,7.6189,189.09,189.01,2.8]
[1761228634147,4.7582,189.12,189.01,2.8]
[1761228634450,23.46760222,189.17,189.01,2.8]
[1761228634451,2.86,189.11,189.01,2.8]
[1761228634856,7.6184,189.11,189.03,4.76]
[1761228635150,2.86,189.11,189.03,4.76]
[1761228635345,2.86,189.11,189.01,2.8]
[1761228636048,4.7586,189.1,189.02,4.7603]
[1761228636440,4.7586,189.1,189.01,2.8]
[1761228636642,4.7589,189.09,189.0,10.62]
[1761228636938,4.7589,189.09,189.0,13.42]
[1761228637143,4.7583,189.11,189.03,7.56]
[1761228637839,7.6183,189.11,189.03,7.56]
[1761228638253,4.7586,189.1,189.03,2.8]
[1761228639147,4.7586,189.1,189.0,10.62]
[1761228639348,2.86,189.09,189.01,4.7606]
[1761228639648,2.86,189.09,189.0,10.62]
[1761228640050,2.86,189.11,189.01,2.8]
[1761228640550,4.7586,189.1,189.01,7.5606]
[1761228640750,4.7586,189.1,189.01,2.8]
[1761228640949,2.86,189.11,189.01,2.8]
[1761228641646,2.86,189.12,189.01,2.8]
[1761228642138,4.7583,189.11,189.02,4.7603]
[1761228642342,7.6183,189.11,189.02,4.7603]
[1761228642753,2.86,189.11,189.02,4.7603]
[1761228643451,4.7589,189.09,189.02,4.7603]
[1761228644455,4.49294433,189.1,189.03,4.7601]
[1761228644848,7.35294433,189.1,189.03,4.7601]
[1761228645052,2.86,189.1,189.03,4.7601]
[1761228645758,2.86,189.1,189.01,2.8]
[1761228645759,7.6186,189.1,189.04,4.7598]
[1761228645949,4.49294433,189.09,189.04,4.7598]
[1761228646256,4.7581,189.12,189.05,2.8]
[1761228646444,4.7581,189.12,189.0,10.62]
[1761228646445,2.86,189.12,189.02,4.7604]
[1761228646651,2.86,189.12,189.01,2.8]
[1761228647054,2.86,189.12,189.02,2.8]
[1761228647360,4.7572,189.15,189.02,2.8]
[1761228647562,2.86,189.15,189.06,2.8]
[1761228647950,4.49719697,189.16,189.06,2.8]
[1761228648147,7.35719697,189.2,189.09,4.7587]
[1761228648453,2.86,189.19,189.06,2.8]
[1761228648850,2.86,189.19,189.09,4.7585]
[1761228649054,7.3574206,189.19,189.09,7.5585]
[1761228649348,2.86,189.18,189.09,7.5585]
[1761228649555,2.86,189.18,189.1,4.7583]
[1761228649860,2.86,189.18,189.1,7.5583]
[1761228650057,2.86,189.18,189.05,2.8]
[1761228650855,2.86,189.16,189.05,2.8]
[1761228651451,9.39361933,189.15,189.05,2.8]
[1761228651653,4.49749118,189.14,189.05,2.8]
[1761228651853,2.86,189.16,189.08,2.8]
[1761228652048,4.49749118,189.17,189.08,2.8]
[1761228652258,2.86,189.18,189.08,2.8]
[1761228652453,7.6168,189.17,189.08,2.8]
[1761228652754,7.35749118,189.16,189.08,2.8]
[1761228652961,2.86,189.16,189.02,2.8]
[1761228653156,4.7576,189.14,189.07,4.7591]
[1761228653354,4.49749118,189.15,189.07,2.8]
[1761228653553,2.86,189.16,189.07,2.8]
[1761228653850,4.7576,189.14,189.07,2.8]
[1761228655058,4.7576,189.14,189.07,7.5591]
[1761228655259,4.7578,189.13,189.07,2.8]
[1761228656258,2.86,189.13,189.02,2.8]
[1761228656463,2.86,189.15,189.02,2.8]
[1761228656969,4.7578,189.13,189.06,4.7593]
[1761228658270,4.7581,189.12,189.05,2.8]
[1761228658766,9.25559118,189.12,189.05,2.8]
[1761228659064,2.6,189.09,189.02,4.7604]
[1761228659555,7.3588,189.09,189.02,4.7604]
[1761228659961,7.3588,189.09,189.0,13.4]
[1761228660465,2.6,189.09,189.02,4.7603]
[1761228660664,2.6,189.13,189.02,2.78]
[1761228660864,2.6,189.17,189.03,2.78]
[1761228661669,2.6,189.17,189.09,4.7585]
[1761228661963,2.6,189.17,189.05,2.78]
[1761228662161,2.6,189.17,189.07,2.78]
[1761228662358,2.6,189.17,189.08,4.99855011]
[1761228662662,2.6,189.17,189.09,4.99855011]
[1761228662869,2.6,189.17,189.1,4.99855011]
[1761228663160,2.6,189.17,189.08,2.78]
[1761228663161,11.82981525,189.17,189.11,4.99855011]
[1761228663374,2.6,189.16,189.12,4.99855011]
[1761228663662,4.47301525,189.18,189.14,2.78]
[1761228663969,4.47301525,189.2,189.15,7.77855011]
[1761228664265,4.89612815,189.29,189.21,2.78]
[1761228664458,2.6,189.29,189.22,4.99855011]
[1761228664664,4.7547,189.25,189.23,4.99855011]
[1761228664864,2.6,189.24,189.13,2.78]
[1761228665166,2.6,189.24,189.14,7.77511725]
[1761228665368,4.7553,189.23,189.15,9.75211725]
[1761228665563,4.7553,189.23,189.16,4.99511725]
[1761228665756,4.47062712,189.26,189.2,4.7557]
[1761228665954,7.07062712,189.29,189.21,4.99511725]
[1761228666160,2.6,189.29,189.22,4.99511725]
[1761228666357,4.47062712,189.3,189.23,4.99511725]
[1761228666562,4.47062712,189.32,189.24,4.99511725]
[1761228666763,4.47062712,189.32,189.25,4.99511725]
[1761228666764,7.59760222,189.31,189.25,4.99511725]
[1761228666959,7.3541,189.28,189.16,2.78]
[1761228667167,2.6,189.28,189.17,7.57674106]
[1761228667364,2.6,189.28,189.18,7.57674106]
[1761228667565,7.354,189.28,189.19,4.79674106]
[1761228667764,7.354,189.28,189.2,4.79674106]
[1761228667964,2.6,189.28,189.21,4.79674106]
[1761228668164,2.6,189.28,189.22,4.79674106]
[1761228668469,2.6,189.28,189.23,4.79674106]
[1761228668669,2.6,189.28,189.12,2.78]
[1761228668971,2.6,189.28,189.14,2.78]
[1761228669162,2.6,189.28,189.16,4.7569]
[1761228669468,2.6,189.28,189.17,4.78933145]
[1761228669665,2.6,189.28,189.18,4.78933145]
[1761228669862,2.6,189.28,189.19,4.78933145]
[1761228670069,4.7546,189.26,189.2,4.78933145]
[1761228670271,2.6,189.25,189.21,4.78933145]
[1761228670471,2.6,189.25,189.16,7.5367]
[1761228670673,2.6,189.25,189.17,7.56501351]
[1761228670971,7.3551,189.24,189.18,4.78501351]
[1761228671166,4.47062712,189.29,189.17,9.5]
[1761228671167,2.6,189.23,189.19,4.78501351]
[1761228671368,45.44,189.25,189.17,0.6989]
[1761228671369,4.7564,189.18,189.17,0.6989]
[1761228671559,2.6,189.17,189.02,2.78]
[1761228671764,2.6,189.17,188.97,6.5285807]
[1761228671765,2.6,189.15,189.03,7.56625647]
[1761228671959,4.7582,189.12,189.04,4.78625647]
[1761228672174,2.6,189.15,189.05,4.78625647]
[1761228672369,2.6,189.15,189.06,7.56625647]
[1761228672563,2.6,189.15,189.07,4.78625647]
[1761228672764,2.6,189.15,189.08,4.78625647]
[1761228673070,2.6,189.15,189.09,4.78625647]
[1761228673271,2.6,189.15,189.1,4.78625647]
[1761228673470,4.7579,189.13,189.05,9.44]
[1761228673664,4.7579,189.13,189.06,4.78663202]
[1761228673860,4.7579,189.13,189.07,4.78663202]
[1761228674067,2.6,189.13,189.05,9.44]
[1761228674263,2.6,189.12,189.06,4.78713963]
[1761228674463,2.6,189.11,189.05,9.44]
[1761228674669,2.6,189.11,189.06,4.78737191]
[1761228674866,2.6,189.11,189.05,9.44]
[1761228675067,2.6,189.06,189.05,6.55]
[1761228675268,2.6,189.05,188.92,2.78]
[1761228675466,45.48,189.08,188.94,2.78]
[1761228675667,48.08,189.08,188.98,2.78]
[1761228675874,2.6,189.07,188.99,4.78778994]
[1761228676173,2.6,189.07,189.0,4.78778994]
[1761228676373,2.6,189.05,189.01,4.78778994]
[1761228676560,2.6,189.05,188.94,2.78]
[1761228676764,2.6,189.05,188.95,4.7871122]
[1761228677066,2.6,189.05,188.96,4.7871122]
[1761228677262,2.6,189.05,188.97,4.7871122]
[1761228677473,2.6,189.05,188.98,4.7871122]
[1761228677663,2.6,189.05,188.99,4.7871122]
[1761228677864,2.6,189.05,189.0,4.7871122]
[1761228678060,45.48,189.08,189.01,4.7871122]
[1761228678061,2.6,189.02,189.01,4.7871122]
[1761228678289,2.6,189.02,188.95,4.84]
[1761228678464,2.6,189.01,188.95,4.84]
[1761228678773,2.6,188.99,188.95,4.84]
[1761228679369,2.6,188.98,188.95,4.84]
[1761228679774,2.6,188.98,188.87,2.78]
[1761228680073,2.6,188.98,188.88,4.78246816]
[1761228680277,7.3616,188.98,188.89,4.78246816]
[1761228680476,2.6,188.97,188.9,4.78246816]
[1761228680671,2.6,188.97,188.91,4.78246816]
[1761228680867,45.48,188.99,188.87,2.78]
[1761228681068,45.48,188.99,188.91,2.78]
[1761228681370,45.48,188.99,188.92,4.77907834]
[1761228681567,45.48,188.99,188.91,2.78]
[1761228681769,50.2413,188.99,188.92,4.77630081]
[1761228681963,2.6,188.98,188.9,4.83]
[1761228682168,7.3615,188.98,188.91,4.77650429]
[1761228682373,7.3615,188.98,188.9,4.83]
[1761228682671,45.48,188.99,188.9,4.83]
[1761228682672,4.62602838,188.94,188.9,4.83]
[1761228682875,2.6,188.92,188.9,4.83]
[1761228683071,48.12,188.91,188.9,4.83]
[1761228683273,2.6,189.02,188.9,4.83]
[1761228683471,2.6,188.98,188.9,4.83]
[1761228683677,45.6,188.97,188.9,4.83]
[1761228684172,107.01621264,189.08,188.91,7.54992504]
[1761228684173,2.6,189.02,188.91,7.54992504]
[1761228684367,2.6,189.0,188.9,4.83]
[1761228684566,2.6,188.97,188.9,4.83]
[1761228684974,4.62602838,188.98,188.9,7.61]
[1761228685273,2.6,188.97,188.91,4.76713151]
[1761228685479,7.3617,188.97,188.9,4.83]
[1761228685976,4.62602838,188.98,188.9,4.83]
[1761228686174,2.82,188.97,188.9,4.83]
[1761228686473,2.82,188.94,188.9,4.83]
[1761228686675,2.82,188.93,188.9,4.83]
[1761228686871,45.58,188.94,188.9,4.83]
[1761228687474,48.4,188.94,188.9,4.83]
[1761228687674,2.82,188.93,188.9,4.83]
[1761228687874,2.82,188.93,188.78,4.7665]
[1761228688078,12.20962838,188.9,188.79,4.76053867]
[1761228688280,2.82,188.89,188.8,4.76053867]
[1761228688574,7.44602838,188.89,188.81,4.76053867]
[1761228688770,12.21002838,188.89,188.82,4.76053867]
[1761228688976,45.64,188.92,188.76,70.48981416]
[1761228689277,52.93602838,188.92,188.82,4.7655]
[1761228689577,2.67,188.91,188.82,4.7655]
[1761228689978,55.02922838,188.92,188.79,7.426]
[1761228689979,2.67,188.89,188.79,7.426]
[1761228690272,2.67,188.89,188.8,4.75295196]
[1761228690472,4.7635,188.9,188.81,12.17875196]
[1761228690779,50.26602838,188.92,188.81,2.66]
[1761228690780,4.62602838,188.92,188.81,2.66]
[1761228690965,45.64,188.9,188.82,4.7653]
[1761228691171,4.62602838,188.89,188.77,62.0]
[1761228691366,7.4342,188.88,188.78,4.74609597]
[1761228691576,45.64,188.9,188.8,2.66]
[1761228691779,45.64,188.9,188.76,70.48981416]
[1761228691780,45.64,188.9,188.81,7.40609597]
[1761228692074,45.64,188.9,188.83,2.66]
[1761228692275,4.62602838,188.95,188.84,7.40605914]
[1761228692470,48.33,188.94,188.84,2.66]
[1761228693071,48.33,188.94,188.85,2.66]
[1761228693272,2.67,188.93,188.76,71.41148535]
[1761228693474,4.7632,188.92,188.78,2.66]
[1761228693685,2.67,188.91,188.8,2.66]
[1761228693873,45.66,188.94,188.82,2.66]
[1761228694182,50.4225,188.94,188.85,7.4247]
[1761228694479,53.0925,188.94,188.85,2.66]
[1761228694676,53.0925,188.94,188.86,4.7645]
[1761228694880,48.33,188.94,188.86,4.7645]
[1761228695083,48.33,188.94,188.85,2.66]
[1761228695380,2.67,188.93,188.81,2.66]
[1761228695570,2.67,188.93,188.82,7.4008829]
[1761228695771,2.67,188.93,188.83,4.7408829]
[1761228695972,45.66,188.94,188.85,2.66]
[1761228696581,2.67,188.95,188.85,2.66]
[1761228696780,45.64,188.94,188.85,2.66]
[1761228697384,7.4314,188.99,188.9,4.7633]
[1761228697581,48.31,188.98,188.87,2.66]
[1761228697872,48.31,188.98,188.89,4.7636]
[1761228698077,48.31,188.98,188.89,2.66]
[1761228698470,48.31,188.98,188.85,2.66]
[1761228698471,2.67,188.97,188.85,2.66]
[1761228698674,4.62602838,188.97,188.86,7.39983324]
[1761228698868,2.67,188.96,188.81,2.66]
[1761228699072,2.67,188.95,188.86,2.66]
[1761228699678,2.67,188.95,188.88,4.7639]
[1761228699977,2.67,188.95,188.86,2.66]
[1761228700380,2.67,188.95,188.87,4.7641]
[1761228700580,2.67,189.0,188.89,2.66]
[1761228700880,2.67,189.0,188.93,4.7626]
[1761228701183,45.66,189.03,188.91,2.66]
[1761228701380,48.33,189.03,188.92,7.39849653]
[1761228701584,4.7606,189.02,188.94,4.7623]
[1761228701978,7.4306,189.02,188.94,4.7623]
[1761228702376,45.66,189.03,188.96,2.66]
[1761228702877,45.66,189.03,188.98,2.66]
[1761228703273,45.66,189.03,188.95,2.66]
[1761228703478,45.66,189.03,188.96,4.73888049]
[1761228703674,45.66,189.03,188.95,2.66]
[1761228703875,45.66,189.03,189.0,2.66]
[1761228704277,45.64,189.07,189.0,2.66]
[1761228704878,107.01621264,189.08,189.0,2.66]
[1761228705082,50.28602838,189.14,189.02,2.66]
[1761228705386,50.28602838,189.14,188.96,4.62602838]
[1761228705387,2.67,189.13,189.04,2.66]
[1761228705573,2.67,189.13,189.06,4.7594]
[1761228705773,2.67,189.13,189.04,2.66]
[1761228705997,45.66,189.14,189.06,2.66]
[1761228706785,2.67,189.13,189.01,2.66]
[1761228706989,2.67,189.13,189.03,2.66]
[1761228707282,45.66,189.14,189.05,2.66]
[1761228707481,45.66,189.14,189.02,4.62602838]
[1761228707482,45.66,189.14,189.07,2.66]
[1761228708788,45.66,189.14,189.08,7.4188]
[1761228709493,45.66,189.14,189.04,2.66]
[1761228709693,48.33,189.14,189.05,4.74189416]
[1761228709888,48.33,189.14,189.04,2.66]
[1761228710189,7.29602838,189.13,189.05,4.74204819]
[1761228710383,2.67,189.12,189.04,2.66]
[1761228710690,2.67,189.12,188.99,2.66]
[1761228710691,4.7583,189.11,188.99,2.66]
[1761228710877,2.67,189.12,189.01,2.66]
[1761228711083,2.67,189.12,189.03,2.66]
[1761228711386,45.66,189.14,189.05,2.66]
[1761228712085,45.66,189.14,189.06,4.7488022]
[1761228712288,2.67,189.16,189.07,4.75207708]
[1761228712495,2.67,189.16,189.08,7.41207708]
[1761228712681,2.67,189.16,189.08,7.4188]
[1761228712991,12.38,189.17,189.1,2.66]
[1761228713884,19.8069,189.17,189.06,7.4195]
[1761228714083,7.29602838,189.16,189.06,7.4195]
[1761228714281,7.29602838,189.16,189.06,4.7595]
[1761228714483,12.38,189.17,189.07,2.66]
[1761228714697,12.38,189.17,189.03,2.66]
[1761228715185,4.62602838,189.16,189.03,2.66]
[1761228715383,4.62602838,189.16,189.07,4.7592]
[1761228715585,7.29602838,189.16,189.07,4.7592]
[1761228715784,2.67,189.16,189.07,4.7592]
[1761228715989,4.62602838,189.15,189.07,4.7592]
[1761228716187,2.67,189.14,189.05,4.7597]
[1761228716694,7.4276,189.14,189.06,4.7593]
[1761228716890,7.4276,189.14,189.06,7.4193]
[1761228717392,2.67,189.14,189.06,7.4193]
[1761228719180,4.62602838,189.15,189.07,7.549]
[1761228719384,12.38,189.17,189.07,7.549]
[1761228719585,7.33602838,189.16,189.07,2.79]
[1761228720194,12.09312838,189.16,189.08,7.5488]
[1761228720688,12.09312838,189.16,189.08,2.79]
[1761228720689,2.71,189.15,189.08,2.79]
[1761228721587,4.62602838,189.16,189.0,62.0]
[1761228721588,2.71,189.13,189.01,2.79]
[1761228721783,4.62602838,189.07,189.01,2.79]
[1761228721984,2.71,189.06,188.93,2.79]
[1761228722583,2.71,189.06,188.89,2.79]
[1761228722990,2.71,189.06,188.94,4.7625]
[1761228723194,2.71,189.06,188.9,2.79]
[1761228723489,12.38,189.17,188.9,2.79]
[1761228723490,4.62602838,189.2,188.98,2.79]
[1761228723693,2.71,189.2,189.1,4.7584]
[1761228723994,2.71,189.2,189.09,2.79]
[1761228724494,2.71,189.14,189.03,2.79]
[1761228724798,20.49602838,189.2,189.03,4.7601]
[1761228724799,2.71,189.1,189.03,4.7601]
[1761228725089,2.71,189.1,188.99,2.79]
[1761228725287,4.62602838,189.1,188.99,2.79]
[1761228725488,2.71,189.09,188.99,2.79]
[1761228725894,7.4689,189.09,189.0,4.7608]
[1761228726390,7.4689,189.09,188.99,2.79]
[1761228726699,4.7583,189.11,188.99,2.79]
[1761228727189,4.7583,189.11,189.02,4.7604]
[1761228727496,4.7583,189.11,188.99,2.79]
[1761228728196,7.4678,189.13,189.02,2.79]
[1761228728594,4.62602838,189.17,189.02,2.79]
[1761228728798,2.71,189.17,189.02,2.79]
[1761228729196,7.4676,189.14,189.06,4.7594]
[1761228729398,2.71,189.13,189.02,2.79]
[1761228729895,2.71,189.13,189.03,2.79]
[1761228730284,2.71,189.13,189.05,4.7595]
[1761228730488,2.71,189.13,189.03,2.79]
[1761228730691,4.62602838,189.16,189.03,2.79]
[1761228730895,2.71,189.17,189.03,2.79]
[1761228731395,4.62602838,189.19,189.03,2.79]
[1761228731396,4.7559,189.2,189.06,2.79]
[1761228731604,2.71,189.19,189.06,2.79]
[1761228731898,2.71,189.19,189.08,2.79]
[1761228733103,2.71,189.19,189.12,4.7578]
[1761228733302,15.87,189.28,189.07,62.0]
[1761228733303,2.71,189.33,189.1,2.79]
[1761228733605,2.71,189.32,189.18,2.79]
[1761228733899,2.71,189.32,189.24,4.7547]
[1761228734095,2.71,189.32,189.21,2.79]
[1761228734291,2.71,189.32,189.23,4.755]
[1761228734491,2.71,189.31,189.21,2.79]
[1761228734701,2.71,189.31,189.17,2.79]
[1761228734903,2.71,189.31,189.13,20.2]
[1761228734904,2.71,189.31,189.22,2.79]
[1761228735406,2.71,189.31,189.2,4.7557]
[1761228736304,2.71,189.31,189.19,2.79]
[1761228736504,2.71,189.31,189.18,4.62602838]
[1761228736505,2.71,189.31,189.2,64.79]
[1761228737900,2.71,189.31,189.21,2.79]
[1761228738104,2.71,189.31,189.22,4.7554]
[1761228738308,2.71,189.31,189.21,2.79]
[1761228739799,2.71,189.31,189.11,2.79]
[1761228740001,2.71,189.3,189.13,2.79]
[1761228740601,2.71,189.3,189.16,4.62602838]
[1761228741009,2.71,189.3,189.17,7.5465]
[1761228741307,2.71,189.3,189.17,2.79]
[1761228741901,50.22602838,189.33,189.19,4.7561]
[1761228741902,2.71,189.27,189.19,4.7561]
[1761228742307,2.71,189.26,189.17,7.5467]
[1761228742612,2.71,189.26,189.09,2.79]
[1761228742805,2.71,189.25,189.12,7.41602838]
[1761228743202,2.71,189.25,189.13,7.52756425]
[1761228743510,2.71,189.3,189.17,2.79]
[1761228743804,2.71,189.3,189.18,7.52756425]
[1761228744001,2.71,189.3,189.21,2.79]
[1761228744203,2.71,189.3,189.22,7.52756425]
[1761228744511,7.88602838,189.35,189.22,7.52756425]
[1761228744512,2.71,189.34,189.26,4.7544]
[1761228744709,2.71,189.34,189.27,4.73756425]
[1761228744911,2.71,189.34,189.28,4.73756425]
[1761228745210,2.71,189.34,189.29,4.73756425]
[1761228745400,2.71,189.34,189.3,4.73756425]
[1761228745596,2.71,189.34,189.31,4.73756425]
[1761228745799,2.71,189.34,189.27,4.7539]
[1761228746001,2.71,189.34,189.28,4.74259289]
[1761228746204,2.71,189.34,189.29,4.74259289]
[1761228746405,2.83,189.34,189.3,4.74259289]
[1761228746605,2.83,189.34,189.31,4.74259289]
[1761228746806,3.26,189.35,189.32,4.74259289]
[1761228747006,3.26,189.35,189.33,4.74188847]
[1761228747312,2.83,189.38,189.34,4.74168723]
[1761228747516,2.83,189.38,189.24,12.48652474]
[1761228747517,173.76821088,189.41,189.35,4.74168723]
[1761228747813,2.83,189.4,189.36,4.74168723]
[1761228748000,2.83,189.4,189.37,4.74021351]
[1761228748205,2.83,189.4,189.32,2.69]
[1761228748407,2.83,189.4,189.33,4.74122705]
[1761228748606,2.83,189.4,189.34,4.74122705]
[1761228748806,2.83,189.4,189.35,4.74122705]
[1761228749008,2.83,189.4,189.36,4.74122705]
[1761228749206,2.83,189.4,189.32,2.69]
[1761228749504,2.83,189.4,189.33,4.7360554]
[1761228749708,173.76821088,189.41,189.34,4.7360554]
[1761228749914,173.76821088,189.41,189.35,4.7360554]
[1761228750214,2.72,189.4,189.32,2.69]
[1761228750515,2.72,189.4,189.33,4.73356685]
[1761228750815,2.72,189.4,189.34,4.73356685]
[1761228751017,2.72,189.4,189.27,2.87]
[1761228751207,2.72,189.4,189.28,4.73395253]
[1761228751519,4.7517,189.37,189.29,4.73395253]
[1761228751721,7.4717,189.37,189.3,4.73395253]
[1761228751910,7.4717,189.37,189.31,4.73395253]
[1761228752110,7.4717,189.37,189.29,4.7535]
[1761228752311,173.76821088,189.41,189.27,2.87]
[1761228752312,2.72,189.34,189.3,4.73266531]
[1761228752514,2.72,189.34,189.27,2.87]
[1761228752719,2.72,189.34,189.28,4.73209147]
[1761228752914,2.72,189.4,189.29,4.73209147]
[1761228753112,2.72,189.34,189.22,2.87]
[1761228753418,2.72,189.34,189.23,9.48686373]
[1761228753619,2.72,189.33,189.17,20.15]
[1761228753814,4.7544,189.27,189.18,4.73267138]
[1761228754018,2.72,189.28,189.19,4.73267138]
[1761228754323,2.72,189.28,189.2,4.73267138]
[1761228754517,2.72,189.28,189.21,4.73267138]
[1761228754821,2.72,189.32,189.23,2.87]
[1761228755015,2.72,189.32,189.24,4.73267138]
[1761228755210,45.52,189.33,189.13,66.90710159]
[1761228755211,2.72,189.31,189.15,2.87]
[1761228755408,2.72,189.31,189.17,2.87]
[1761228755714,2.72,189.31,189.13,69.57942315]
[1761228755715,2.72,189.31,189.19,2.87]
[1761228755911,2.72,189.3,189.2,4.73373246]
[1761228756113,2.72,189.28,189.21,4.73373246]
[1761228756315,2.72,189.28,189.19,2.87]
[1761228756617,4.7544,189.26,189.2,4.73473626]
[1761228756814,2.72,189.25,189.21,4.73473626]
[1761228757019,2.72,189.25,189.18,4.7564]
[1761228757319,2.72,189.25,189.19,4.73505425]
[1761228757518,2.72,189.25,189.18,4.7564]
[1761228757715,2.72,189.25,189.16,4.7569]
[1761228757918,2.72,189.25,189.15,2.87]
[1761228758120,2.72,189.25,189.16,4.73636035]
[1761228758319,2.72,189.25,189.15,2.87]
[1761228758517,2.72,189.23,189.14,4.7574]
[1761228759318,4.7559,189.21,189.12,4.7579]
[1761228759514,4.7559,189.21,189.1,2.87]
[1761228759515,48.32,189.21,189.1,2.87]
[1761228759713,2.72,189.2,189.05,2.87]
[1761228759917,2.72,189.2,189.06,7.60807061]
[1761228760118,2.72,189.2,189.07,4.73807061]
[1761228760318,2.72,189.17,189.08,4.73807061]
[1761228760511,2.72,189.17,189.09,4.73807061]
[1761228760712,2.72,189.17,189.04,45.6]
[1761228760917,2.72,189.17,189.01,64.87]
[1761228760918,2.72,189.13,189.05,4.73834719]
[1761228761118,2.72,189.13,189.06,4.73834719]
[1761228761318,2.72,189.13,189.03,4.7602]
[1761228761522,2.72,189.13,189.04,4.73808775]
[1761228761827,2.72,189.13,189.05,4.73808775]
[1761228762029,4.7582,189.12,189.03,4.7602]
[1761228762326,4.7582,189.12,189.04,4.73808839]
[1761228762519,4.7582,189.12,189.03,4.7602]
[1761228762520,4.7582,189.12,189.05,4.73808839]
[1761228762716,61.47,189.21,188.95,4.90710159]
[1761228762717,2.72,189.18,189.07,2.87]
[1761228762920,2.72,189.18,189.09,2.87]
[1761228763120,2.72,189.18,189.1,4.7376066]
[1761228763321,2.72,189.18,189.09,2.87]
[1761228763730,2.72,189.18,189.11,4.7582]
[1761228764732,2.72,189.18,189.09,7.6287]
[1761228764928,2.72,189.18,189.1,4.73766098]
[1761228765230,7.4767,189.18,189.09,7.6287]
[1761228765436,7.4767,189.18,189.1,4.7378142]
[1761228765622,7.4767,189.18,189.09,7.6287]
[1761228765823,7.4767,189.18,189.1,4.73814961]
[1761228766025,4.756,189.2,189.11,9.49611408]
[1761228766330,4.756,189.2,189.11,4.758]
[1761228766531,2.72,189.19,189.11,4.758]
[1761228766921,2.72,189.18,189.09,7.6287]
[1761228767118,2.72,189.18,189.1,2.87]
[1761228767523,9.5076,189.29,189.03,62.0]
[1761228767524,2.72,189.23,189.13,2.87]
[1761228767734,2.72,189.23,189.06,7.57942315]
[1761228767735,2.72,189.3,189.15,2.87]
[1761228767928,2.72,189.3,189.16,7.61034084]
[1761228768126,2.72,189.3,189.17,4.74034084]
[1761228768427,2.72,189.26,189.18,4.7562]
[1761228769529,7.4747,189.26,189.16,2.87]
[1761228769836,2.72,189.29,189.17,4.7427521]
[1761228770029,7.4752,189.24,189.11,2.87]
[1761228770227,7.4752,189.24,189.13,2.87]
[1761228770529,7.4752,189.24,189.14,7.61289555]
[1761228770731,7.4752,189.24,189.17,4.7567]
[1761228771336,7.4752,189.24,189.18,4.74760857]
[1761228771534,7.4752,189.24,189.17,4.7567]
[1761228771836,7.4752,189.24,189.18,4.74755937]
[1761228772023,7.4752,189.24,189.17,4.7567]
[1761228772228,7.4752,189.24,189.18,4.74756001]